{"text_format":"1","workbook":"xlsx","n_sheets":1,"sheets":["conceptos"],"not_rendered":{"charts":0,"images":2,"macros":1,"external_links":0,"defined_names":1,"comments":0,"pivot_tables":0},"unopened":[],"bounds":{"document_bytes":16777216,"sheet_cells":100000,"rows_first":2000,"rows_last":500,"rows_between":2000,"halvings":0,"cell_chars":16384,"cell_head_chars":4096},"cells_cut":0,"cells_raw":0,"read":"whole","date_system":"1900"}

{"sheet":"conceptos","index":0,"n_rows":128,"n_cols":8,"rows_kept":128,"cut":false,"hidden":false,"merged":[[125,0,125,4],[126,0,127,4],[13,0,13,6],[0,2,0,5],[9,2,9,5],[1,2,3,5],[4,2,4,3],[6,2,6,3],[7,2,7,3],[4,4,4,5],[5,4,5,5],[6,4,6,5],[7,4,7,5],[10,2,10,5],[11,2,11,5],[5,1,8,1]]}
[null,"GOBIERNO DEL ESTADO DE JALISCO","LICITACIÓN PÚBLICA ESTATAL"]
[null,"INSTITUTO DE LA INFRAESTRUCTURA FÍSICA EDUCATIVA DEL","INFEJAL-E-REM-B-CON-06077-LP-0011-2021"]
[null,"ESTADO DE JALISCO"]
[]
[null,"DESCRIPCIÓN GENERAL DE LOS TRABAJOS:","FECHA DE INICIO:"]
[null,null,null,"FECHA DE TERMINACIÓN:"]
[null,null,"PLAZO DE EJECUCIÓN:"]
[null,null,"FECHA:"]
[]
[null,"RAZÓN SOCIAL DEL LICITANTE:","NOMBRE, CARGO Y FIRMA DEL LICITANTE:",null,null,null,"DOCUMENTO"]
[]
[]
[]
["PRESUPUESTO DE OBRA"]
[]
["CLAVE","DESCRIPCIÓN","UNIDAD","CANTIDAD","PRECIO UNITARIO ($)","PRECIO UNITARIO ($) CON LETRA","IMPORTE ($) M.N."]
["TRABAJO : BAS-CON-06077","TERMINACIÓN DE AULA DIDÁCTICA (APLANADOS, PISOS, PINTURAS, CANCELERÍAS E INSTALACIONES ELÉCTRICAS), REHABILITACIÓN DE NÚCLEO DE SANITARIOS, PATIO CÍVICO E INSTALACIONES EN OBRA EXTERIOR EN LA ESCUELA PRIMARIA VICENTE GUERRERO CCT 14DPR2666Q, UBICADA EN LA LOCALIDAD EL TRAPICHE, MUNICIPIO DE SAN JUANITO DE ESCOBEDO, JALISCO.",null,null,null,null,{"$f":"TEXT(SUM(G18 + G44 + G83 + G86 + G92 + G96), \"$ #,##0.00 ;\")","v":"$ 0.00 "}]
["B","EDIFICIO B",null,null,null,null,{"$f":"TEXT(SUM(G19 + G25 + G27 + G31 + G34 + G39 + G41), \"$ #,##0.00 ;\")","v":"$ 0.00 "}]
["B.01(140)","DEMOLICIONES, DESMONTAJES Y MECANICA DE SUELOS    ",null,null,null,null,{"$f":"TEXT(SUM(G20:G24), \"$ #,##0.00 ;\")","v":"$ 0.00 "}]
[140070,"DEMOLICION DE APLANADOS EXISTENTE EN MURO 2.5 CM DE ESPESOR PROMEDIO A UNA ALTURA DE 2.50 MTS.  INCLUYE: ACARREO DE MATERIAL PRODUCTO DE LA DEMOLICION FUERA DE OBRA, LIMPIEZA, EQUIPO DE SEGURIDAD, HERRAMIENTAS Y MANO DE OBRA.","M2 ","7.0000",0,"CERO PESOS 00/100 M.N.",0,339680]
[140073,"DEMOLICION POR MEDIOS MANUALES DE AZULEJO EN MUROS. SIN RECUPERACION,  INCLUYE: HERRAMIENTAS, LIMPIEZA DEL AREA DE TRABAJO, MANO DE OBRA, RETIRO Y ACARREO DE MATERIALES DE DESHECHO DENTRO Y FUERA DE LA OBRA ATIRADERO AUTORIZADO Y LIMPIEZA DEL AREA DE LOS TRABAJOS.","M2 ","25.0000",0,"CERO PESOS 00/100 M.N.",0,339681]
[140129,"DESINSTALACION DE MUEBLE DE BAÑO YA SEA INODORO, LAVABO, MINGITORIO,  ETC. SIN RECUPERACION  INCLUYE:  DESCONEXION, HERRAMIENTAS, MANO DE OBRA, LIMPIEZA Y ACARREO DEL MUEBLE FUERA DE LA OBRA.","PZA","6.0000",0,"CERO PESOS 00/100 M.N.",0,339682]
[140199,"DESMONTAJE DE PUERTAS Y MAMPARAS CON MARCO Y CONTRA MARCOS DE HERRERIA TUBULAR Y/O DE ALUMINIO EXISTENTES EN OBRA, SIN RECUPERACION, TRASLADO Y GUARDADO EN BODEGA O LUGAR INDICADO POR SUPERVISION. INCLUYE; ANTEPECHO, DEMOLICION DE ANCLAJES, ACARREO Y RETIRO FUERA DE OBRA DE MATERIAL PRODUCTO DE LA DEMOLICION, MANO DE OBRA CALIFICADA Y LIMPIEZA DEL AREA DE TRABAJO.","M2 ","8.0000",0,"CERO PESOS 00/100 M.N.",0,339683]
[140616,"DEMOLICION DE DALA DE CONCRETO DE 15 X 15 CMS. INCL. HERRAMIENTA, MANO DE OBRA Y RETIRO DE MATERIAL PRODUCTO DE LA DEMOLICION FUERA DE LA OBRA.\n\n","ML ","1.3000",0,"CERO PESOS 00/100 M.N.",0,339684]
["B.02(355)","RECUBRIMIENTOS Y ACABADOS                         ",null,null,null,null,{"$f":"TEXT(SUM(G26:G26), \"$ #,##0.00 ;\")","v":"$ 0.00 "}]
[358016,"SUMINISTRO Y COLOCACION DE LOSETA CERAMICA PARA MURO ( AZULEJO ), CON RECUBRIMIENTO ESMALTADO, DE 25 X 40 CM., MCA.  INTERCERAMIC, LINEA COSTA DEL SOL, CUALQUIER COLOR, DE PRIMERA CALIDAD, ASENTADO CON PEGAZULEJO Y JUNTEDO CON JUNTEADOR DE COLOR,  JUNTAS A HUESO, INCLUYE: TRAZO, CORTE, REMATES, ESCUADRE, DESPERDICIOS, DESPATINADO, EMBOQUILLADOS, CERTIFICADO DE CALIDAD, HERRAMIENTAS, MATERIALES,  MANO DE OBRA, LIMPIEZA Y ACARREO DE MATERIALES AL SITIO DE SU UTILIZACION, A CUALQUIER NIVEL.","M2 ","27.0000",0,"CERO PESOS 00/100 M.N.",0,339689]
["B.03(372)","PISOS                                             ",null,null,null,null,{"$f":"TEXT(SUM(G28:G30), \"$ #,##0.00 ;\")","v":"$ 0.00 "}]
[360565,"SUMINISTRO Y COLOCACION DE MALLA ELECTROSOLDADA 6X6-10/10 COMO REFUERZO EN PISOS DE CONCRETO, INCLUYE: DESPERDICIOS, TRASLAPES, HERRAMIENTA Y ACARREO DEL MATERIAL AL SITIO DE SU COLOCACION.","M2 ","4.0000",0,"CERO PESOS 00/100 M.N.",0,339692]
[372242,"FIRME DE CONCRETO F´C= 150 KG/CM2 TMA= 3/4\",  DE 8 CM DE ESPESOR, ACABADO APALILLADO. INCLUYE: TRAZO, NIVELACION, AFINE Y COMPACTACION DEL TERRENO, AGUA, MATERIALES, EXTENDIDO, REGLEADO, CURADO, DESPERDICIOS, HERRAMIENTAS, LIMPIEZA, MANO DE OBRA Y ACARREO DEL MATERIAL AL SITIO DE SU UTILIZACION","M2 ","4.0000",0,"CERO PESOS 00/100 M.N.",0,339693]
[962162,"SUMINISTRO Y COLOCACION DE PISO DE  LOSETA CERAMICA DE 33 X 33 CM., MCA. INTERCERAMIC DE PRIMERA, LINEA NIZA, DE CUALQUIER COLOR, GRADO DE DUREZA (PEI) \"IV\" , ASENTADO CON PEGAPISO Y JUNTEDO CON JUNTEADOR DE COLOR,  JUNTAS DE 4 MM. DE ANCHO, INCLUYE: TRAZO, CORTE, REMATES, ESCUADRE, DESPERDICIOS, DESPATINADO, EMBOQUILLADOS, CERTIFICADO DE CALIDAD, HERRAMIENTAS, MATERIALES,  MANO DE OBRA, LIMPIEZA  Y ACARREO DE MATERIALES AL SITIO DE SU UTILIZACION, A CUALQUIER ALTURA.","M2 ","9.0000",0,"CERO PESOS 00/100 M.N.",0,339698]
["B.04(393)","PINTURA                                           ",null,null,null,null,{"$f":"TEXT(SUM(G32:G33), \"$ #,##0.00 ;\")","v":"$ 0.00 "}]
[393022,"PINTURA VINIL-ACRÍLICA A BASE DE AGUA ACABADO SEMIMATE  LAVABLE, PARA INTERIORES Y EXTERIORES QUE NO DESPRENDA VAPORES TÓXICOS NI OLORES DESAGRADABLES, CON LAS SIGUIENTES CARACTERÍSTICAS ( SÓLIDOS POR PESO 46-52%, SÓLIDOS POR VOLUMEN 30-36%, VISCOSIDAD DE 100-130 UK A 25°C, DENSIDAD > O = 1.2 TON/M3., LAVABILIDAD > O = 4,000 CICLOS, TIEMPO DE SECADO AL TACTO, 30-40 MIN., TIEMPO DE SECADO DURO < O = 8 HRS., CICLO DE CURADO DE 7 DIAS, PH 6-8, RENDIMIENTO EN SUP. LISA 8-10 M2/LT., FINEZA DE MOLIDO (HEGMAN) 3-7 UH.)  EN MUROS APLANADOS DE MEZCLA APALILLADO O PULIDO, TRABAJO TERMINADO, A DOS MANOS, INCLUYE: MATERIALES MENORES Y DE CONSUMO, ANDAMIOS, PREPARACION DE LA SUPERFICIE, SELLADO DE LA SUPERFICIE, HERRAMIENTAS, LIMPIEZA, MANO DE OBRA Y  ACARREOS DE MATERIALES AL SITIO DE SU UTILIZACIÓN.","M2 ","115.0000",0,"CERO PESOS 00/100 M.N.",0,339700]
[393052,"PINTURA VINIL-ACRÍLICA A BASE DE AGUA ACABADO SEMIMATE  LAVABLE, PARA INTERIORES Y EXTERIORES QUE NO DESPRENDA VAPORES TÓXICOS NI OLORES DESAGRADABLES, CON LAS SIGUIENTES CARACTERÍSTICAS ( SÓLIDOS POR PESO 46-52%, SÓLIDOS POR VOLUMEN 30-36%, VISCOSIDAD DE 100-130 UK A 25°C, DENSIDAD > O = 1.2 TON/M3., LAVABILIDAD > O = 4,000 CICLOS, TIEMPO DE SECADO AL TACTO, 30-40 MIN., TIEMPO DE SECADO DURO < O = 8 HRS., CICLO DE CURADO DE 7 DIAS, PH 6-8, RENDIMIENTO EN SUP. LISA 8-10 M2/LT., FINEZA DE MOLIDO (HEGMAN) 3-7 UH.)  EN LOSAS Y ELEMENTOS DE CONCRETO, TRABAJO TERMINADO, A DOS MANOS, INCLUYE: MATERIALES MENORES Y DE CONSUMO, ANDAMIOS, PREPARACION DE LA SUPERFICIE DE CONCRETO, SELLADO DE LA SUPERFICIE, HERRAMIENTAS, LIMPIEZA, MANO DE OBRA Y  EQUIPO DE SEGURIDAD. A CUALQUIER ALTURA.","M2 ","14.0000",0,"CERO PESOS 00/100 M.N.",0,339702]
["B.05(410)","CANCELERIA, HERRERIA, ALUMINIO, VIDRIOS Y CHAPAS  ",null,null,null,null,{"$f":"TEXT(SUM(G35:G38), \"$ #,##0.00 ;\")","v":"$ 0.00 "}]
[412041,"FABRICACION, SUMINISTRO Y COLOCACION DE PROTECCIONES PARA VENTANERIA A BASE DE HERRERIA ESTRUCTURAL DE ACERO, ELABORADA CON UN PERFIL PERIMETRAL DE ANGULO DE 1 1/2\" X 1 1/2\" X 3/16\",  HORIZONTALES DE REDONDO SOLIDO LISO DE 1/2\" SEPARADOS  DE C. A C. 11.5 CM. PROMEDIO Y REFUERZOS VERTICALES DE SOLERA DE 3/16\" X 1 1/4\" COLOCADOS A @ 73.5 CM. PROMEDIO, CON PERFORACIONES PARA INSERCION DE REDONDOS. ANCLADA A ESTRUCTURA (CONSTRUCCION) A BASE DE TORNILLO CON BARRENANCLA Y/O SOLDADURA,  INCLUYE: TRAZO, CORTES, SOLDADURA, NIVELACION, PLAMEO, PERFORACIONES, PINTURA DE TALLER,  AJUSTES Y DETALLES REALIZADOS EN OBRA DE ACUERDO A LO CONSTRUIDO,  ACARREOS, LIMPIEZA, MATERIALES, DESPERDICIOS, HERRAMIENTAS, EQUIPOS, MANO DE OBRA CALIFICADA Y ACARREO DE MATERIALES AL SITIO DE SU COLOCACION. EN CUALQUIER NIVEL.","M2 ","7.1500",0,"CERO PESOS 00/100 M.N.",0,339707]
[420022,"SUMINISTRO, HABILITADO Y COLOCACION DE CANCELERIA FABRICADA  EN ALUMINIO ANODIZADO NATURAL CON PERFILES COMERCIALES DE 2\" X 1.25\",  MCA. CUPRUM ,  LINEA PANORAMA O SIMILAR, INCLUYE: TRAZO, CORTES, AJUSTES, MATERIALES, CORREDERAS, JALADERAS, OPERADORES, REPISON, SELLADO PERIMETRAL, SILICON, VINIL, HERRAJES, ELEMENTOS DE FIJACION, MATERIALES MENORES Y DE CONSUMO, DESPERDICIOS, HERRAMIENTAS, MANO DE OBRA ESPECIALIZADA, LIMPIEZA, FLETES, EQUIPO Y ACARREO DE MATERIALES AL SITIO DE SU COLOCACION, A CUALQUIER NIVEL.","M2 ","6.1500",0,"CERO PESOS 00/100 M.N.",0,339709]
[426025,"SUMINISTRO Y COLOCACION DE ESPEJO DE 6 MM DE ESPESOR, Y MEDIDAS GENERALES DE 45 X 70 CMS., CANTO PULIDO,  FIJO A MURO A BASE DE CONECTORES CILINDRICOS TIPO CHAPETON DE ACERO INOXIDABLE DE 1\" DE DIAMETRO Y 1 1/2\" DE LARGO,  INCLUYE: CORTES, PERFORACIONES, HERRAJES, BISELADO PERIMETRAL DE 1.5 CM. DE ANCHO,  MATERIALES MENORES Y DE CONSUMO, DESPERDICIOS, HERRAMIENTAS, LIMPIEZA, MANO DE OBRA Y ACARREOS AL SITIO DE SU INSTALACION.","PZA","2.0000",0,"CERO PESOS 00/100 M.N.",0,339716]
[907361,"SUMINISTRO Y COLOCACION DE PUERTAS Y/O  MAMPARAS MCA.  MODUMEX O SIMILAR, LINEA LEEDER,  MODELO ESTANDAR, FABRICADAS CON CAPAS DE FIBRA CELULOSA, PAPEL DECORATIVO Y RESINAS,  BAJO UN PROCESO DE LAMINADO PLASTICO DE ALTA PRESION, CON UN ESPESOR TOTAL DE 12.7 MM. , CON ACABADO ANTI GRAFFITI,  EN COLOR INDICADO EN OBRA POR LA SUPERVISION,  INCLUYE: HERRAJES, PASADORES CON AVISO DE VACANTE Y OCUPADO, BISAGRAS, TOPES, JALADERAS, SOPORTES INFERIORES PARA PILASTRA REDONDOS DE ACERO INOXIDABLE CAL. 12 Y CAPUCHON DE NYLON,  DESPERDICIOS, AJUSTES,  MATERIALES DE FIJACION, MANO DE OBRA ESPECIALIZADA, HERRAMIENTAS, MANO DE OBRA, LIMPIEZA Y ACARREO DE MATERIALES AL SITIO DE SU UTILIZACION. (AREA EFECTIVA DE LA MAMPARA)","M2 ","8.0000",0,"CERO PESOS 00/100 M.N.",0,339717]
["B.06(510)","INSTALACION ELECTRICA EN EDIFICIO                 ",null,null,null,null,{"$f":"TEXT(SUM(G40:G40), \"$ #,##0.00 ;\")","v":"$ 0.00 "}]
[550090,"SUMINISTRO E INSTALACION DE LUMINARIO FLUORESCENTE DE SOBREPONER, TIPO ENVOLVENTE, AHORRADOR DE ENERGIA DE 2 X 32 WATTS. FABRICADO EN LAMINA CAL 22, RECUBIERTO CON TRATAMIENTO FOSFATIZADO Y PINTURA ACRILICA O POLIESTER COLOR BLANCO, APLICADA ELECTROSTATICAMENTE Y TERMOENDURECIDA, PARA OBTENER UNA REFLECTANCIA MINIMA DE 90%, CON DIFUSOR ACRILICO PRISMATICO 100% PURO, TIPO ENVOLVENTE, CON UNA LONGITUD DE 120 CM., BALASTRO ELECTRONICO DE BAJA EMISION DE ARMONICAS, PARA OPERAR UNA O DOS LAMPARAS T8 DE 32 WATTS, LA LUMINARIA (COMPLETA) DEBERA CUMPLIR CON LA NORMA ANCE, INCLUYE: COPIA DE CERTIFICACION ANCE ANEXA EN ELTRAMITE DE LA ESTIMACION, FIJACION, CONEXION, MATERIALES MENORES, HERRAMIENTAS, GARANTIAS,  MANO DE OBRA, PRUEBAS Y ACARREOS.","PZA","2.0000",0,"CERO PESOS 00/100 M.N.",0,339724]
["B.07(590)","MUEBLES DE BAÑO Y COCINA                          ",null,null,null,null,{"$f":"TEXT(SUM(G42:G43), \"$ #,##0.00 ;\")","v":"$ 0.00 "}]
[590005,"SUMINISTRO E INSTALACION DE INODORO CON TANQUE BAJO, MARCA CATO O SIMILAR, MOD. JAZMÍN , COLOR BLANCO, INCLUYE: ASIENTO DE PLASTICO, LLAVE ANGULAR FIG. 401, MANGUERA FLEXIBLE COFLEX, TANQUE, ACCESORIOS DE BRONCE PARA EL TANQUE BAJO, MATERIALES MENORES Y DE CONSUMO, ELEMENTOS DE FIJACION, LIMPIEZA, CUELLO DE CERA CON GUIA, PRUEBAS, HERRAMIENTAS, MANO DE OBRA Y ACARREO DE MATERIALES AL SITIO DE SU COLOCACION.","PZA","4.0000",0,"CERO PESOS 00/100 M.N.",0,339728]
[590265,"SUMINISTRO Y COLOCACION DE OVALIN DE SOBREPONER, MCA. AMERICAN STANDAR, MOD. CADET UNIVERSAL MONOMANDO, INCLUYE: LLAVES ANGULARES FIG. 401, CESPOL CROMADO MCA. URREA FIG. 207, LLAVE ECONOMIZADORA DE CIERRE AUTOMATICO MARCA HELVEX FIG. TV-120, MANGUERA COFLEX, DESPERDICIOS, MATERIALES MENORES Y DE CONSUMO, ELEMENTOS DE FIJACION, MANO DE OBRA, HERRAMIENTA, LIMPIEZA, EQUIPO, PRUEBAS Y ACARREO DE MATERIALES AL SITIO DE SU COLOCACION.","PZA","2.0000",0,"CERO PESOS 00/100 M.N.",0,339729]
["C","EDIFICIO C",null,null,null,null,{"$f":"TEXT(SUM(G45 + G47 + G52 + G59 + G65 + G73), \"$ #,##0.00 ;\")","v":"$ 0.00 "}]
["C.01(319)","ENTREPISOS, CUBIERTA Y ACABADOS DE AZOTEA         ",null,null,null,null,{"$f":"TEXT(SUM(G46:G46), \"$ #,##0.00 ;\")","v":"$ 0.00 "}]
[344125,"IMPERMEABILIZACION DE MUROS O LOSAS, A BASE DE MEMBRANA PREFABRICADA, MCA. IMPERQUIMIA, UNIPLAS AERO PLUS SBS, ALTO DESEMPEÑO CON VENTILACION ANTIABOLSAMIENTOS, FABRICADA A BASE DE ASFALTOS MODIFICADOS CON POLIMEROS SINTETICOS SBS (ESTIRENO BUTADIENO ESTIRENO) REFORZADA CON MALLA POLIESTER DE ALTA RESISTENCIA, ACABADO APARENTE A BASE DE GRAVILLA ESMALTADA A FUEGO, 4.5 MM  DE ESPESOR TOTAL, COLOR ROJO TERRACOTA, GARANTIA POR ESCRITO DE 10 AÑOS, POR LA EMPRESA CONTRATISTA., INCLUYE: LIMPIEZA Y PREPARACION DE LA SUPERFICIE, APLICACION DE PRIMER IMPERCOAT PRIMARIO SL, PARA ANCLAJE Y TAPAPORO DE LA SUPERFICIE, SELLADO DE FISURAS Y GRIETAS A BASE DE CEMENTO PLASTICO BITUMINOSO IMPERCOAT CEMENTO SBS, SUMINISTRO Y COLOCACION DE MEMBRANA POR MEDIO DE TERMOFUSION A BASE DE FUEGO DE SOPLETE DE GAS BUTANO, HACIENDO TRASLAPES MINIMOS DE 0.10 MTS. EN AMBOS SENTIDOS, SELLADO DE ORILLAS, REMATES Y TRASLAPES, MATERIALES MENORES Y DE CONSUMO, CORTES, DESPERDICIOS, LIMPIEZA GENERAL, HERRAMIENTAS, MANO DE OBRA ESPECIALIZADA Y ACARREOS AL SITIO DE SU COLOCACION.","M2 ","77.8000",0,"CERO PESOS 00/100 M.N.",0,339685]
["C.02(355)","RECUBRIMIENTOS Y ACABADOS                         ",null,null,null,null,{"$f":"TEXT(SUM(G48:G51), \"$ #,##0.00 ;\")","v":"$ 0.00 "}]
[355022,"APLANADO DE MUROS Y/O TECHOS CON MORTERO CEMENTO-CAL-ARENA DE RIO EN PROP. 1:2:6 DE 2 CM. DE ESPESOR PROMEDIO, A PLOMO Y REGLA, ACABADO APALILLADO FINO, INCLUYE: MATERIALES, DESPERDICIOS, ANDAMIOS, HERRAMIENTAS, PLOMEO, NIVELACION, REMATES, LIMPIEZA DEL AREA DE TRABAJO Y ACARREO DE MATERIALES AL SITIO DE SU UTILIZACION. A CUALQUIER NIVEL.\n","M2 ","90.0000",0,"CERO PESOS 00/100 M.N.",0,339686]
[357322,"BOQUILLAS EN PUERTAS Y VENTANAS, CON MORTERO CEMENTO-CAL-ARENA 1:2:6, INCLUYE: ANDAMIOS Y ACARREO DE MATERIALES AL SITIO DE SU UTILIZACION.","ML ","30.0000",0,"CERO PESOS 00/100 M.N.",0,339687]
[357352,"FILETES Y BOLEADOS, HECHOS CON MORTERO CEMENTO-CAL-ARENA EN PROPORCION 1:2:6, INCLUYE: DESPERDICIOS, ANDAMIOS Y ACARREO DE MATERIALES AL SITIO DE SU UTILIZACION, A CUALQUIER NIVEL.","ML ","90.0000",0,"CERO PESOS 00/100 M.N.",0,339688]
[935603,"RESANADO Y PERFILADO DE REMATE PERIMETRAL DE LOSA DE CONCRETO DE 10 A 15 CM DE PERALTE, CON CEMENTO ARENA PROP.1:3 DE 1.5 CM DE ESPESOR PROMEDIO  INCLUYE: LIMPIEZA Y PREPARACION DE LA SUPERFICIE, APLICACION DE FESTER BOND EN SUPERFICIE DE CONTACTO CON MORTERO NUEVO, RETIRO DE RECUBRIMIENTO EXISTENTE SUELTO Y EN MAL ESTADO, MANO DE OBRA, MATERIALES, HERRAMIENTAS, ANDAMIOS A CUALQUIER NIVEL, LIMPIEZA DEL AREA DE TRABAJO ACARREO DE MATERIALES AL SITUO DE SU UTILIZACION.","ML ","8.0000",0,"CERO PESOS 00/100 M.N.",0,339690]
["C.03(372)","PISOS                                             ",null,null,null,null,{"$f":"TEXT(SUM(G53:G58), \"$ #,##0.00 ;\")","v":"$ 0.00 "}]
[344511,"SUMINISTRO Y COLOCACION DE JUNTA DE CONTRACCION ELASTOMERICA. EN PISOS CON UNA SECCION TRANSVERSAL DE 6 X 10 MM, A BASE DE SILICON DE COLOR PARA JUNTAS DE DILATACION, INCLUYE: LIMPIEZA DEL AREA A TRATAR, DESPERDICIOS Y ACARREO DEL MATERIAL AL SITIO DE SU COLOCACION.","ML ","13.7000",0,"CERO PESOS 00/100 M.N.",0,339691]
[373022,"PISO DE CONCRETO F'C=150 KG/CM², T.M.A. 3/4\", DE 0.10 M. DE ESPESOR, COLADO EN CUADROS NO MAYORES DE 3.00 ML POR LADO, INCLUYE: TRAZO, NIVELACION, AFINE Y COMPACTACION DEL TERRENO, AGUA, DESPERDICIOS, ACARREOS, REGLEADO, ACABADO INTEGRAL RAYADO CON BROCHA DE PELO (SIN UTILIZACION DE PASTA), CIMBRA EN FRONTERAS, DESCIMBRA, COLADO, CURADO, REMATES, ESCALONADO, MUESTREADO, JUNTAS FRIAS CON VOLTEADOR, HERRAMIENTAS Y MANO DE OBRA.","M2 ","15.6000",0,"CERO PESOS 00/100 M.N.",0,339694]
[373546,"CEJA DE CONCRETO F'C=250 KG/CM2, TMA=3/4\" DE 15 X 10 CM DE SECCION, ARMADA CON 1 VARILLA #3 (3/8\") Y ESTRIBOS DE 1/4\" @ 25.0 CM, EN CUALQUIER NIVEL. INCLUYE: CIMBRA APARENTE, DESCIMBRA, COLADO, VIBRADO, CURADO, PERFILADO, CHAFLANES, GOTERO, LIMPIEZA, HERRAMIENTAS, MATERIALES, DESPERDICIOS Y MANO DE OBRA.","ML ","28.6000",0,"CERO PESOS 00/100 M.N.",0,339695]
[374202,"GUARNICION O MACHUELO DE CONCRETO FC=150 KG/CM2, CON UNA SECCION TRANSVERSAL 15 X 40 CMS., ARMADA CON 4 VARILLAS DEL #3 Y ESTRIBOS #2 A CADA 20 CMS. CON CIMBRA APARENTE POR CARA VISIBLE Y COMUN EN CARA OCULTA , INCLUYE: TRAZO, AFINE Y COMPACTACION DEL TERRENO EN AREA DE CONTACTO, CIMBRA Y DESCIMBRA, COLADO, VIBRADO, CURADO, MATERIALES, HERRAMIENTAS, LIMPIEZA DEL AREA DE TRABAJO, MANO DE OBRA Y ACARREO DE MATERIALES AL SITIO DE SU UTILIZACION.","ML ","28.0000",0,"CERO PESOS 00/100 M.N.",0,339696]
[376146,"SUMINISTRO Y COLOCACION DE CENEFA DE 15.00 CM APROXIMADAMENTE A BASE DE  PISO DE LOSETA CERAMICA DE PRIMERA, QUE DEBERA CUMPLIR CON LAS SIGUIENTES CARACTERISTICAS TECNICAS: ABSORCION <= 3% , COEFICIENTE DE ESTATICO DE FRICCION >= 0.5, MODULO DE RUPTURA >= 300 KG/CM², PEI, RESISTENCIA A LA ABRASION VISIBLE 1500 CICLOS (PEI IV), RESISTENTE AL MANCHADO, RESISTENCIA AL RAYADO >= 5.0 MOHS, RESISTENTE A LOS QUIMICOS, ASENTADO CON PEGA PISO Y JUNTEADO CON JUNTEADOR DE COLOR, CON JUNTAS DE 4.00 MM. DE ANCHO MINIMO. INCLUYE: HERRAMIENTAS, MATERIALES, TRAZO, CORTES,  NIVELACION,  LIMPIEZA, DESPERDICIOS, MANO DE OBRA Y ACARREO DE MATERIALES AL SITIO DE SU UTILIZACION.","ML ","1.3000",0,"CERO PESOS 00/100 M.N.",0,339697]
[962162,"SUMINISTRO Y COLOCACION DE PISO DE  LOSETA CERAMICA DE 33 X 33 CM., MCA. INTERCERAMIC DE PRIMERA, LINEA NIZA, DE CUALQUIER COLOR, GRADO DE DUREZA (PEI) \"IV\" , ASENTADO CON PEGAPISO Y JUNTEDO CON JUNTEADOR DE COLOR,  JUNTAS DE 4 MM. DE ANCHO, INCLUYE: TRAZO, CORTE, REMATES, ESCUADRE, DESPERDICIOS, DESPATINADO, EMBOQUILLADOS, CERTIFICADO DE CALIDAD, HERRAMIENTAS, MATERIALES,  MANO DE OBRA, LIMPIEZA  Y ACARREO DE MATERIALES AL SITIO DE SU UTILIZACION, A CUALQUIER ALTURA.","M2 ","47.0000",0,"CERO PESOS 00/100 M.N.",0,339699]
["C.04(393)","PINTURA                                           ",null,null,null,null,{"$f":"TEXT(SUM(G60:G64), \"$ #,##0.00 ;\")","v":"$ 0.00 "}]
[393022,"PINTURA VINIL-ACRÍLICA A BASE DE AGUA ACABADO SEMIMATE  LAVABLE, PARA INTERIORES Y EXTERIORES QUE NO DESPRENDA VAPORES TÓXICOS NI OLORES DESAGRADABLES, CON LAS SIGUIENTES CARACTERÍSTICAS ( SÓLIDOS POR PESO 46-52%, SÓLIDOS POR VOLUMEN 30-36%, VISCOSIDAD DE 100-130 UK A 25°C, DENSIDAD > O = 1.2 TON/M3., LAVABILIDAD > O = 4,000 CICLOS, TIEMPO DE SECADO AL TACTO, 30-40 MIN., TIEMPO DE SECADO DURO < O = 8 HRS., CICLO DE CURADO DE 7 DIAS, PH 6-8, RENDIMIENTO EN SUP. LISA 8-10 M2/LT., FINEZA DE MOLIDO (HEGMAN) 3-7 UH.)  EN MUROS APLANADOS DE MEZCLA APALILLADO O PULIDO, TRABAJO TERMINADO, A DOS MANOS, INCLUYE: MATERIALES MENORES Y DE CONSUMO, ANDAMIOS, PREPARACION DE LA SUPERFICIE, SELLADO DE LA SUPERFICIE, HERRAMIENTAS, LIMPIEZA, MANO DE OBRA Y  ACARREOS DE MATERIALES AL SITIO DE SU UTILIZACIÓN.","M2 ","140.0000",0,"CERO PESOS 00/100 M.N.",0,339701]
[393052,"PINTURA VINIL-ACRÍLICA A BASE DE AGUA ACABADO SEMIMATE  LAVABLE, PARA INTERIORES Y EXTERIORES QUE NO DESPRENDA VAPORES TÓXICOS NI OLORES DESAGRADABLES, CON LAS SIGUIENTES CARACTERÍSTICAS ( SÓLIDOS POR PESO 46-52%, SÓLIDOS POR VOLUMEN 30-36%, VISCOSIDAD DE 100-130 UK A 25°C, DENSIDAD > O = 1.2 TON/M3., LAVABILIDAD > O = 4,000 CICLOS, TIEMPO DE SECADO AL TACTO, 30-40 MIN., TIEMPO DE SECADO DURO < O = 8 HRS., CICLO DE CURADO DE 7 DIAS, PH 6-8, RENDIMIENTO EN SUP. LISA 8-10 M2/LT., FINEZA DE MOLIDO (HEGMAN) 3-7 UH.)  EN LOSAS Y ELEMENTOS DE CONCRETO, TRABAJO TERMINADO, A DOS MANOS, INCLUYE: MATERIALES MENORES Y DE CONSUMO, ANDAMIOS, PREPARACION DE LA SUPERFICIE DE CONCRETO, SELLADO DE LA SUPERFICIE, HERRAMIENTAS, LIMPIEZA, MANO DE OBRA Y  EQUIPO DE SEGURIDAD. A CUALQUIER ALTURA.","M2 ","76.0000",0,"CERO PESOS 00/100 M.N.",0,339703]
[393142,"PINTURA DE ESMALTE ALQUIDALICO ANTICORROSIVO, ACABADO BRILLANTE, PARA INTERIORES Y EXTERIORES QUE NO DESPRENDA VAPORES TÓXICOS NI OLORES DESAGRADABLES, CON LAS SIGUIENTES CARACTERÍSTICAS ( SÓLIDOS POR PESO 49-60%, SÓLIDOS POR VOLUMEN 40-46%, VISCOSIDAD DE 110-160 UK A 25°C, DENSIDAD 0.9-1.2 TON/M3., BRILLO A 60°C, 90%, TIEMPO DE SECADO AL TACTO, < O = 6 HRS., TIEMPO DE SECADO DURO < O = 24 HRS., ADHERENCIA 100%, RENDIMIENTO EN SUP. LISA 8-10 M2/LT., DILUCIÓN MÁXIMA (AGUARRÁS, THINER), 15 %,  EN HERRERIA ABIERTA DE PERFILES ESTRUCTURALES (PROTECCIONES), MEDIDA POR UN SOLO LADO, TRABAJO TERMINADO, A DOS MANOS, INCLUYE: MATERIALES MENORES Y DE CONSUMO, ANDAMIOS, PREPARACION DE LA SUPERFICIE, HERRAMIENTAS, LIMPIEZA, MANO DE OBRA Y  EQUIPO DE SEGURIDAD. A CUALQUIER NIVEL. (LA PINTURA ES POR AMBOS LADOS DE LA HERRERIA, PERO PARA SU PAGO ES MEDIDA SOLO POR 1 SOLO LADO).","M2 ","7.1500",0,"CERO PESOS 00/100 M.N.",0,339704]
[393142,"PINTURA DE ESMALTE ALQUIDALICO ANTICORROSIVO, ACABADO BRILLANTE, PARA INTERIORES Y EXTERIORES QUE NO DESPRENDA VAPORES TÓXICOS NI OLORES DESAGRADABLES, CON LAS SIGUIENTES CARACTERÍSTICAS ( SÓLIDOS POR PESO 49-60%, SÓLIDOS POR VOLUMEN 40-46%, VISCOSIDAD DE 110-160 UK A 25°C, DENSIDAD 0.9-1.2 TON/M3., BRILLO A 60°C, 90%, TIEMPO DE SECADO AL TACTO, < O = 6 HRS., TIEMPO DE SECADO DURO < O = 24 HRS., ADHERENCIA 100%, RENDIMIENTO EN SUP. LISA 8-10 M2/LT., DILUCIÓN MÁXIMA (AGUARRÁS, THINER), 15 %,  EN HERRERIA ABIERTA DE PERFILES ESTRUCTURALES (PROTECCIONES), MEDIDA POR UN SOLO LADO, TRABAJO TERMINADO, A DOS MANOS, INCLUYE: MATERIALES MENORES Y DE CONSUMO, ANDAMIOS, PREPARACION DE LA SUPERFICIE, HERRAMIENTAS, LIMPIEZA, MANO DE OBRA Y  EQUIPO DE SEGURIDAD. A CUALQUIER NIVEL. (LA PINTURA ES POR AMBOS LADOS DE LA HERRERIA, PERO PARA SU PAGO ES MEDIDA SOLO POR 1 SOLO LADO).","M2 ","10.8500",0,"CERO PESOS 00/100 M.N.",0,339705]
[393526,"FABRICACION, SUMINISTRO E INSTALACION DE ROTULO DE IDENTIFICACION EN PUERTAS DE INGRESO A (SANITARIOS, DIRECCIONES, AULAS, ANEXOS, ETC.)  CON MEDIDAS GENERALES DE 16 X 16 CM., FABRICADOS A BASE DE LAMINA DE ALUMINIO DE 1/8\". DE ESPESOR, FORRADO CON VINIL ADHERIBLE, CON IMAGEN, TEXTO IMPRESO, (VER PLANO DE DETALLES Y ESPECIFICACIONES PROPORCIONADO), INCLUYE: TRAZO, DISEÑO, MATERIALES, MARGEN IMPRESO DE 1 CM DE ANCHO,  ELEMENTOS DE FIJACION,  EQUIPO, HERRAMIENTA Y MANO DE OBRA. EN CUALQUIER NIVEL.","PZA","1.0000",0,"CERO PESOS 00/100 M.N.",0,339706]
["C.05(410)","CANCELERIA, HERRERIA, ALUMINIO, VIDRIOS Y CHAPAS  ",null,null,null,null,{"$f":"TEXT(SUM(G66:G72), \"$ #,##0.00 ;\")","v":"$ 0.00 "}]
[412041,"FABRICACION, SUMINISTRO Y COLOCACION DE PROTECCIONES PARA VENTANERIA A BASE DE HERRERIA ESTRUCTURAL DE ACERO, ELABORADA CON UN PERFIL PERIMETRAL DE ANGULO DE 1 1/2\" X 1 1/2\" X 3/16\",  HORIZONTALES DE REDONDO SOLIDO LISO DE 1/2\" SEPARADOS  DE C. A C. 11.5 CM. PROMEDIO Y REFUERZOS VERTICALES DE SOLERA DE 3/16\" X 1 1/4\" COLOCADOS A @ 73.5 CM. PROMEDIO, CON PERFORACIONES PARA INSERCION DE REDONDOS. ANCLADA A ESTRUCTURA (CONSTRUCCION) A BASE DE TORNILLO CON BARRENANCLA Y/O SOLDADURA,  INCLUYE: TRAZO, CORTES, SOLDADURA, NIVELACION, PLAMEO, PERFORACIONES, PINTURA DE TALLER,  AJUSTES Y DETALLES REALIZADOS EN OBRA DE ACUERDO A LO CONSTRUIDO,  ACARREOS, LIMPIEZA, MATERIALES, DESPERDICIOS, HERRAMIENTAS, EQUIPOS, MANO DE OBRA CALIFICADA Y ACARREO DE MATERIALES AL SITIO DE SU COLOCACION. EN CUALQUIER NIVEL.","M2 ","10.8500",0,"CERO PESOS 00/100 M.N.",0,339708]
[420022,"SUMINISTRO, HABILITADO Y COLOCACION DE CANCELERIA FABRICADA  EN ALUMINIO ANODIZADO NATURAL CON PERFILES COMERCIALES DE 2\" X 1.25\",  MCA. CUPRUM ,  LINEA PANORAMA O SIMILAR, INCLUYE: TRAZO, CORTES, AJUSTES, MATERIALES, CORREDERAS, JALADERAS, OPERADORES, REPISON, SELLADO PERIMETRAL, SILICON, VINIL, HERRAJES, ELEMENTOS DE FIJACION, MATERIALES MENORES Y DE CONSUMO, DESPERDICIOS, HERRAMIENTAS, MANO DE OBRA ESPECIALIZADA, LIMPIEZA, FLETES, EQUIPO Y ACARREO DE MATERIALES AL SITIO DE SU COLOCACION, A CUALQUIER NIVEL.","M2 ","10.8500",0,"CERO PESOS 00/100 M.N.",0,339710]
[422020,"SUMINISTRO Y COLOCACION DE PUERTA PREFABRICADA, CON MEDIDAS GENERALES DE 1.20 X 2.10 MTS.,  MCA. PORCELTECH O SIMILAR EN GARANTIA Y CALIDAD. MOD. BETA, TIPO TAMBOR DE 36 MM. DE ESPESOR, FABRICADA CON BASTIDOR DE PERFIL TUBULAR  GALVANIZADO DE 1 1/4\" , NUCLEO RELLENO CON PANEL HONEY COMB DE 1 3/8\" DE ESPESOR Y DOBLE CARA (INTERIOR-EXTERIOR) DE  LAMINA DE ACERO PORCELANIZADO CAL. 24,  EN COLOR INDICADO POR LA SUPERVISION Y CUBRECANTOS DE ALUMINIO ANODIZADO NATURAL , MARCO Y ANTEPECHO DE HERRERIA TUBULAR DE PERFILES COMERCIALES DE 3\" X 1 1/2\" CAL 14., TOPE DE ANGULO DE 3/4\" X 1/8\", INCLUYE: MARCO, HERRAJES, BISAGRAS, NIVELACION, PLOMEO, ELEMENTOS DE FIJACION, MATERIALES MENORES Y DE CONSUMO, SELLADO PERIMETRAL, HERRAMIENTAS, LIMPIZA, MANO DE OBRA, FLETES Y ACARREOS DE MATERIALES AL SITIO DE SU COLOCACION, EN CUALQUIER NIVEL.","PZA","1.0000",0,"CERO PESOS 00/100 M.N.",0,339711]
[424094,"SUMINISTRO Y COLOCACION DE CERRADURA TIPO EUROPEO PARA PUERTA EXTERIOR, MCA. JAKO, MOD. KIT9001ENT, FABRICADA EN ACERO INOXIDABLE CON ACABADO SATINADO, DOBLE MANIJA DE PERFIL TUBULAR REDONDO Y CILINDRO LLAVE-MARIPOSA, INCLUYE: TRAZO, TALADROS, ELEMENTOS DE FIJACION, HERRAMIENTAS, CILINDRO, CHAPETÓN, LLAVES, LIMPIEZA,  MANO DE OBRA Y  ACARREO DE MATERIAL AL SITIO DE SU UTILIZACION.","PZA","1.0000",0,"CERO PESOS 00/100 M.N.",0,339712]
[424322,"SUMINISTRO Y COLOCACION DE TOPES DE PISO PARA PUERTA. INC.: ACARREO DE MATERIAL AL SITIO DE SU UTILIZACION, A CUALQUIER NIVEL.","PZA","1.0000",0,"CERO PESOS 00/100 M.N.",0,339713]
[426010,"SUMINISTRO Y COLOCACION DE CRISTAL FLOTADO DE 6 MM. DE ESPESOR,  ASENTADO CON SILICON, INCLUYE: CORTES, DESPERDICIOS Y ACARREO DE MATERIALES AL SITIO DE SU UTILIZACION A CUALQUIER NIVEL.","M2 ","5.0000",0,"CERO PESOS 00/100 M.N.",0,339714]
[426010,"SUMINISTRO Y COLOCACION DE CRISTAL FLOTADO DE 6 MM. DE ESPESOR,  ASENTADO CON SILICON, INCLUYE: CORTES, DESPERDICIOS Y ACARREO DE MATERIALES AL SITIO DE SU UTILIZACION A CUALQUIER NIVEL.","M2 ","10.3000",0,"CERO PESOS 00/100 M.N.",0,339715]
["C.06(510)","INSTALACION ELECTRICA EN EDIFICIO                 ",null,null,null,null,{"$f":"TEXT(SUM(G74:G82), \"$ #,##0.00 ;\")","v":"$ 0.00 "}]
[516028,"SALIDA PARA VENTILADOR DE TECHO INCLUYE:TUBERIA CONDUIT PVC USO PESADO, BOTE INTEGRAL, CABLE VINANEL THW-LS 600 V. A 75° C, 90° C, MARCA CONDUCTORES MONTERREY, (VIAKON-PROTOCOLIZADO), CABLE VINANEL 21 THW-LS 600 V. A 75° C, 90° C, MARCA CONDUMEX (CONDUMEX PROTOCOLIZADO). CALIBRE 12 Y 14, CAJAS, TAPAS PAR CAJAS, DESPERDICIOS MATERIALES MENORES, PRUEBAS Y ACARREOS AL SITIO DE SU COLOCACION A CUALQUIER NIVEL.\n","SAL","2.0000",0,"CERO PESOS 00/100 M.N.",0,339718]
[518071,"SALIDA ELECTRICA PARA CONTACTO MONOFASICO  DUPLEX POLARIZADO, OCULTA, CON TUBERIA Y CONEXIONES CONDUIT DE PVC. PESADO DE 13 Y 19 MM. DE DIAMETRO,  CABLE VINANEL THW-LS 600 V. A 75° C, 90° C, MARCA CONDUCTORES MONTERREY, (VIAKON-PROTOCOLIZADO), CABLE VINANEL 21 THW-LS 600 V. A 75° C, 90° C, MARCA CONDUMEX (CONDUMEX PROTOCOLIZADO)., CAL.  12  EN FASES Y CAL. 12 PARA TIERRA FISICA, CAJAS DE REGISTRO  CUADRADAS, CHALUPAS Y TAPAS DE PVC REFORZADO, CONTACTO QUINZIÑO MX, TAPA DE ALUMINIO, INCLUYE: TRAZO, RANURAS, CONEXION A TIERRA, MATERIALES MENORES, PRUEBAS, DESPERDICIOS, LIMPIEZAS, HERRAMIENTAS, MANO DE OBRA, Y ACARREO DEL MATERIAL AL SITIO DE SU COLOCACION, A CUALQUIER NIVEL.","SAL","5.0000",0,"CERO PESOS 00/100 M.N.",0,339719]
[522033,"SALIDA ELECTRICA PARA  APAGADOR SENCILLO, OCULTA, CON TUBERIA Y CONEXIONES CONDUIT DE PVC TIPO PESADO DE 13 Y 19 MM. DE DIAMETRO, CABLE VINANEL THW-LS 600 V. A 75° C, 90° C, MARCA CONDUCTORES MONTERREY, (VIAKON-PROTOCOLIZADO), CABLE VINANEL 21 THW-LS 600 V. A 75° C, 90° C, MARCA CONDUMEX (CONDUMEX PROTOCOLIZADO). CALIBRE 12, CAJAS CUADRADAS, CHALUPAS Y TAPAS DE PVC, APAGADOR QUINZIÑO, TAPA DE ALUMINIO, INCLUYE: RANURAS, MATERIALES MENORES, PRUEBAS, DESPERDICIOS Y ACARREO DEL MATERIAL AL SITIO DE SU COLOCACION, A CUALQUIER NIVEL.","SAL","2.0000",0,"CERO PESOS 00/100 M.N.",0,339720]
[522423,"SALIDA ELECTRICA PARA  CONTROL DE VENTILADOR, VISIBLE, CON TUBERIA Y CONEXIONES CONDUIT GALVANIZADA PARED DELGADA DE AJUSTE, ETIQUETA VERDE, DE 13 Y 19 MM. DE DIAMETRO,  CABLE VINANEL THW-LS 600 V. A 75° C, 90° C, MARCA CONDUCTORES MONTERREY, (VIAKON-PROTOCOLIZADO), CABLE VINANEL 21 THW-LS 600 V. A 75° C, 90° C, MARCA CONDUMEX (CONDUMEX PROTOCOLIZADO).  CALIBRE 12 Y 14, INCLUYE: CODOS, COPLES, CAJA CUADRADA, DESPERDICIOS, ACCESORIOS, TAPA GALVANIZADA,  CONTROL, TAPA , MATERIALES DE FIJACION, MANO DE OBRA, HERRAMIENTAS, Y ACAREO DE MATERIALES AL SITIO DE SU COLOCACION ACUALQUIER ALTURA.","SAL","2.0000",0,"CERO PESOS 00/100 M.N.",0,339721]
[540305,"SUMINISTRO E INSTALACION DE CENTRO DE CARGA CAT. QO-816L-100,  DE 8 POLOS  100 AMPERES, INCLUYE: MATERIALES, ZAPATAS, MANO DE OBRA, HERRAMIENTAS, ELEMENTOS DE FIJACION, PRUEBAS,  ACARREOS Y MATERIALES MENORES.","PZA","1.0000",0,"CERO PESOS 00/100 M.N.",0,339722]
[543020,"SUMINISTRO Y COLOCACION DE INTERRUPTOR TERMOMAGNETICO CON 2 POLOS, DE 15-50 AMPERES, MCA. SQUARE D, CAT. QO. INCLUYE: PRUEBAS, FLETES, MATERIALES MENORES Y ACARREO DE MATERIALES AL SITIO DE SU COLOCACION.","PZA","2.0000",0,"CERO PESOS 00/100 M.N.",0,339723]
[550090,"SUMINISTRO E INSTALACION DE LUMINARIO FLUORESCENTE DE SOBREPONER, TIPO ENVOLVENTE, AHORRADOR DE ENERGIA DE 2 X 32 WATTS. FABRICADO EN LAMINA CAL 22, RECUBIERTO CON TRATAMIENTO FOSFATIZADO Y PINTURA ACRILICA O POLIESTER COLOR BLANCO, APLICADA ELECTROSTATICAMENTE Y TERMOENDURECIDA, PARA OBTENER UNA REFLECTANCIA MINIMA DE 90%, CON DIFUSOR ACRILICO PRISMATICO 100% PURO, TIPO ENVOLVENTE, CON UNA LONGITUD DE 120 CM., BALASTRO ELECTRONICO DE BAJA EMISION DE ARMONICAS, PARA OPERAR UNA O DOS LAMPARAS T8 DE 32 WATTS, LA LUMINARIA (COMPLETA) DEBERA CUMPLIR CON LA NORMA ANCE, INCLUYE: COPIA DE CERTIFICACION ANCE ANEXA EN ELTRAMITE DE LA ESTIMACION, FIJACION, CONEXION, MATERIALES MENORES, HERRAMIENTAS, GARANTIAS,  MANO DE OBRA, PRUEBAS Y ACARREOS.","PZA","1.0000",0,"CERO PESOS 00/100 M.N.",0,339725]
[550190,"SUMINISTRO E INSTALACION DE LUMINARIO FLUORESCENTE DE SOBREPONER, TIPO ENVOLVENTE, AHORRADOR DE ENERGIA DE 2 X 59 WATTS. FABRICADO EN LAMINA CAL 22, RECUBIERTO CON TRATAMIENTO FOSFATIZADO Y PINTURA ACRILICA O POLIESTER COLOR BLANCO, APLICADA ELECTROSTATICAMENTE Y TERMOENDURECIDA, PARA OBTENER UNA REFLECTANCIA MINIMA DE 90%, CON DIFUSOR ACRILICO PRISMATICO 100% PURO, TIPO ENVOLVENTE, CON UNA LONGITUD DE 240 CM., BALASTRO ELECTRONICO DE BAJA EMISION DE ARMONICAS, PARA OPERAR UNA O DOS LAMPARAS T8 DE 59 WATTS, (EQUIVALENTE A 4 LAMPARAS T8 DE 32 WATTS.), LA LUMINARIA (COMPLETA) DEBERA CUMPLIR CON LA NORMA ANCE, INCLUYE: COPIA DE CERTIFICACION ANCE ANEXA EN EL TRAMITE DE LA ESTIMACION, FIJACION, CONEXION, MATERIALES MENORES, HERRAMIENTAS, GARANTIAS, MANO DE OBRA, PRUEBAS Y ACARREOS.","PZA","4.0000",0,"CERO PESOS 00/100 M.N.",0,339726]
[910011,"SUMINISTRO Y COLOCACION DE VENTILADOR DE PARED DE 20\", 3 ASPAS DE ALUMINIO, 3 ESTRATOS DE MOVIMIENTO DE AIRE, TIPO INDUSTRIAL, INCLUYE: HERRAMIENTA, EQUIPO, MANO DE OBRA Y ACARREO DEL MATERIAL AL SITIO DE SU COLOCACION, A CUALQUIER ALTURA.","PZA","2.0000",0,"CERO PESOS 00/100 M.N.",0,339727]
["03","RED SANITARIA",null,null,null,null,{"$f":"TEXT((G84), \"$ #,##0.00 ;\")","v":"$ 0.00 "}]
["03.01(140)","DEMOLICIONES, DESMONTAJES Y MECANICA DE SUELOS    ",null,null,null,null,{"$f":"TEXT(SUM(G85:G85), \"$ #,##0.00 ;\")","v":"$ 0.00 "}]
[140191,"DESAZOLVE DE TUBERIAS DE REDES  SANITARIAS EN DIFERENTES DIAMETROS, INCLUYE: DESAZOLVE DE REGISTROS, REJILLAS Y COLADERAS, LIMPIEZA, PRUEBAS, HERRAMIENTAS, MANO DE OBRA,  RETIRO DE MATERIALES PRODUCTO DE LIMPIEZAS FUERA DE LA OBRA.","ML ","5.0000",0,"CERO PESOS 00/100 M.N.",0,339730]
["01","PLAZA Y ANDADORES",null,null,null,null,{"$f":"TEXT(SUM(G87 + G89), \"$ #,##0.00 ;\")","v":"$ 0.00 "}]
["01.01(140)","DEMOLICIONES, DESMONTAJES Y MECANICA DE SUELOS    ",null,null,null,null,{"$f":"TEXT(SUM(G88:G88), \"$ #,##0.00 ;\")","v":"$ 0.00 "}]
[929099,"DEMOLICION DE PISO DE CONCRETO DE 8 A 12 CMS. DE ESPESOR, POR CUALQUIER MEDIO, INCLUYE: HERRAMIENTA, MANO DE OBRA.  Y ACARREO DE OBRA DE MATERIAL PRODUCTO DE LA DEMOLICION DENTRO Y FUERA DE LA OBRA, AL LUGAR PERMITIDO POR LAS AUTORIDADES CORRESPONDIENTES.","M2 ","142.6500",0,"CERO PESOS 00/100 M.N.",0,339731]
["01.02(372)","PISOS                                             ",null,null,null,null,{"$f":"TEXT(SUM(G90:G91), \"$ #,##0.00 ;\")","v":"$ 0.00 "}]
[373026,"PISO DE CONCRETO HECHO EN OBRA F'C=200 KG/CM2, TMA 3/4\", DE 10 CMS. DE ESPESOR, ACABADO RAYADO CON BROCHA, EN FORMA INTERGRAL, SIN UTILIZACION DE PASTA, COLADO A CUADROS, CON REFUERZO DE MALLA ELECTROSOLDADA 6-6 / 10-10, INCLUYE: TRAZO, NIVELACION, AFINE Y COMPACTACION DEL TERRENO, MATERIALES, CIMBRA DE FRONTERA, DESCIMBRA, DESPERDICIOS, CURADO, VIBRADO, MUESTREADO, JUNTAS FRIAS, VOLTEADOR,  HERRAMIENTAS, MANO DE OBRA Y ACARREOS DE MATERIALES AL SITIO DE SU UTILIZACION.","M2 ","143.9500",0,"CERO PESOS 00/100 M.N.",0,339732]
[373766,"FORJADO DE NARIZ DE REMATE EN PISO DE  BANQUETAS, CON 10.0  X  10.0 CM. DE SECCION, INCLUYE SOLO: CIMBRA APARENTE, DESCIMBRA, GOTERO, FORJADO, CHAFLANES, PERFILADO, DESPERDICIOS, HERRAMIENTAS, Y MANO DE OBRA. (NO INCLUYE CONCRETO).","ML ","14.2500",0,"CERO PESOS 00/100 M.N.",0,339733]
["02","RED ELECTRICA",null,null,null,null,{"$f":"TEXT((G93), \"$ #,##0.00 ;\")","v":"$ 0.00 "}]
["02.01(511)","INSTALACION ELECTRICA EN OBRA EXTERIOR            ",null,null,null,null,{"$f":"TEXT(SUM(G94:G95), \"$ #,##0.00 ;\")","v":"$ 0.00 "}]
[534006,"SUMINISTRO Y TENDIDO DE TUBO CONDUIT DE P.V.C. PESADO, DE 25 MM DIAM. INC.: CONEXIONES, TRAZO, EXCAVACION, RELLENO, DESPERDICIOS, MATERIALES MENORES, PRUEBAS Y ACARREO AL SITIO DE SU COLOCACION.","ML ","18.0000",0,"CERO PESOS 00/100 M.N.",0,339734]
[596056,"REGISTRO ELECTRICO DE 60.0 X 60.0 X 80.0 CM. DE LADRILLO DE LAMA DE 5.5 X 11.0 X 22.0 CM, A SOGA, ASENTADO Y APLANADO CON MORTERO CEMENTO - ARENA 1:4, CON CAMA DE GRAVA DE 5.0 CM DE ESPESOR, TAPA DE LAMINA NEGRA CAL. 18 CON MARCO Y CONTRAMARCO DE  ANGULO DE 1 1/2\" X 1/8\", AHOGADA EN CADENA DE CONCRETO F'C=200 KG/CM2 SECCION 14 X 20 CMS., ARMADA CON 4 VARILLAS DEL # 3 Y ESTRIBOS DEL # 2 @ 20 CMS., INCLUYE: TRAZO, EXCAVACIONES, RELLENOS CON MATERIAL PRODUCTO DE EXCAVACION, RETIRO DE MATERIAL EXCEDENTE FUERA DE LA OBRA, VARILLA AL CENTRO PARA LA COCA DE LOS CABLES A UTILIZAR, CIMBRA COMUN, DESCIMBRADO, DESPERDICIOS, PRIMARIO ROJO ANTICORROSIVO Y PINTURA DE ESMALTE A 2 MANOS, EN HERRERIA (TAPA, CONTRATAPA, MARCO Y CONTRAMARCO), RETIRO DE MATERIAL PRODUCTO DE EXCAVACION FUERA DE LA OBRA Y ACARREO DEL MATERIAL AL SITIO DE SU UTILIZACION,","PZA","2.0000",0,"CERO PESOS 00/100 M.N.",0,339735]
[52,"CANALES PARA AGUAS PLUVIALES",null,null,null,null,{"$f":"TEXT((G97), \"$ #,##0.00 ;\")","v":"$ 0.00 "}]
["52.01(565)","INSTALACION HIDRAULICA, SANITARIA Y GAS EN O. EXT.",null,null,null,null,{"$f":"TEXT(SUM(G98:G98), \"$ #,##0.00 ;\")","v":"$ 0.00 "}]
[917113,"CONSTRUCCION DE CANALETA PLUVIAL TIPO 3 (PLANO TIPO), DE CONCRETO F`C=150 KG/CM2. TMA. 3/4\", R.N., CON SECCION CENTRAL DE 0.45 MTS. EN LA PARTE SUPERIOR Y 0.30 MTS. EN LA PARTE INFERIOR Y ALTURA 0.30 MTS. CEJA ORILLERA DE 0.20 MTS. A CADA LADO Y 0.08 MTS. DE ESPESOR (DESARROLLO TOTAL DE 1.32 M2/ML. DE CANALETA), INCLUYE; CIMBRA COMUN EN FRONTERAS, JUNTA FRIA ACADA 3.00 MTS. NIVELADO, CONFORMADO, COLADO, VIBRADO, CURADO, DESPERDICIOS, MATERIALES, EQUIPO, HERRAMIENTA, LIMPIEZA DEL AREA, MANO DE OBRA Y ACARREO DE MATERIALES AL SITIO DE SU UTILIZACION.","ML ","12.0000",0,"CERO PESOS 00/100 M.N.",0,339736]
[null,"RESUMEN DE PARTIDAS"]
["BAS-CON-06077","TERMINACIÓN DE AULA DIDÁCTICA (APLANADOS, PISOS, PINTURAS, CANCELERÍAS E INSTALACIONES ELÉCTRICAS), REHABILITACIÓN DE NÚCLEO DE SANITARIOS, PATIO CÍVICO E INSTALACIONES EN OBRA EXTERIOR EN LA ESCUELA PRIMARIA VICENTE GUERRERO CCT 14DPR2666Q, UBICADA EN LA LOCALIDAD EL TRAPICHE, MUNICIPIO DE SAN JUANITO DE ESCOBEDO, JALISCO.",null,null,null,null,{"$f":"G17","v":"$ 0.00 "}]
["B","EDIFICIO B",null,null,null,null,{"$f":"G18","v":"$ 0.00 "}]
["B.01(140)","DEMOLICIONES, DESMONTAJES Y MECANICA DE SUELOS    ",null,null,null,null,{"$f":"G19","v":"$ 0.00 "}]
["B.02(355)","RECUBRIMIENTOS Y ACABADOS                         ",null,null,null,null,{"$f":"G25","v":"$ 0.00 "}]
["B.03(372)","PISOS                                             ",null,null,null,null,{"$f":"G27","v":"$ 0.00 "}]
["B.04(393)","PINTURA                                           ",null,null,null,null,{"$f":"G31","v":"$ 0.00 "}]
["B.05(410)","CANCELERIA, HERRERIA, ALUMINIO, VIDRIOS Y CHAPAS  ",null,null,null,null,{"$f":"G34","v":"$ 0.00 "}]
["B.06(510)","INSTALACION ELECTRICA EN EDIFICIO                 ",null,null,null,null,{"$f":"G39","v":"$ 0.00 "}]
["B.07(590)","MUEBLES DE BAÑO Y COCINA                          ",null,null,null,null,{"$f":"G41","v":"$ 0.00 "}]
["C","EDIFICIO C",null,null,null,null,{"$f":"G44","v":"$ 0.00 "}]
["C.01(319)","ENTREPISOS, CUBIERTA Y ACABADOS DE AZOTEA         ",null,null,null,null,{"$f":"G45","v":"$ 0.00 "}]
["C.02(355)","RECUBRIMIENTOS Y ACABADOS                         ",null,null,null,null,{"$f":"G47","v":"$ 0.00 "}]
["C.03(372)","PISOS                                             ",null,null,null,null,{"$f":"G52","v":"$ 0.00 "}]
["C.04(393)","PINTURA                                           ",null,null,null,null,{"$f":"G59","v":"$ 0.00 "}]
["C.05(410)","CANCELERIA, HERRERIA, ALUMINIO, VIDRIOS Y CHAPAS  ",null,null,null,null,{"$f":"G65","v":"$ 0.00 "}]
["C.06(510)","INSTALACION ELECTRICA EN EDIFICIO                 ",null,null,null,null,{"$f":"G73","v":"$ 0.00 "}]
["03","RED SANITARIA",null,null,null,null,{"$f":"G83","v":"$ 0.00 "}]
["03.01(140)","DEMOLICIONES, DESMONTAJES Y MECANICA DE SUELOS    ",null,null,null,null,{"$f":"G84","v":"$ 0.00 "}]
["01","PLAZA Y ANDADORES",null,null,null,null,{"$f":"G86","v":"$ 0.00 "}]
["01.01(140)","DEMOLICIONES, DESMONTAJES Y MECANICA DE SUELOS    ",null,null,null,null,{"$f":"G87","v":"$ 0.00 "}]
["01.02(372)","PISOS                                             ",null,null,null,null,{"$f":"G89","v":"$ 0.00 "}]
["02","RED ELECTRICA",null,null,null,null,{"$f":"G92","v":"$ 0.00 "}]
["02.01(511)","INSTALACION ELECTRICA EN OBRA EXTERIOR            ",null,null,null,null,{"$f":"G93","v":"$ 0.00 "}]
[52,"CANALES PARA AGUAS PLUVIALES",null,null,null,null,{"$f":"G96","v":"$ 0.00 "}]
["52.01(565)","INSTALACION HIDRAULICA, SANITARIA Y GAS EN O. EXT.",null,null,null,null,{"$f":"G97","v":"$ 0.00 "}]
[]
["IMPORTE CON LETRA (IVA INCLUIDO)",null,null,null,null,"SUBTOTAL M.N.",{"$f":"TEXT(G17,  \"$ #,##0.00 ;\")","v":"$ 0.00 "}]
[{"$f":"UPPER(CONVERTIRNUM(ROUND( G17 * 1.16, 2)))","v":"CERO PESOS 00/100 M.N."},null,null,null,null,"IVA M.N.",{"$f":"TEXT(ROUND( G17 * 0.16, 2),  \"$ #,##0.00 ;\")","v":"$ 0.00 "}]
[null,null,null,null,null,"TOTAL M.N.",{"$f":"TEXT(ROUND( G17 * 1.16, 2),  \"$ #,##0.00 ;\")","v":"$ 0.00 "}]